bitfinex-derivatives/quotes_BTCF0:USTF0_20250629
["timestamp","ask_amount","ask_price","bid_price","bid_amount"]
[1751232172212,0.002,107590.0,107580.0,1.81677346]
[1751232188519,0.002,107590.0,107580.0,2.10324256]
[1751232189714,0.002,107590.0,107580.0,1.31846773]
[1751232189915,0.002,107590.0,107580.0,2.10324256]
[1751232190516,0.002,107590.0,107580.0,2.19606915]
[1751232190716,0.002,107590.0,107580.0,2.22399284]
[1751232191112,0.001,107590.0,107580.0,2.22399284]
[1751232191318,0.001,107590.0,107580.0,2.22499284]
[1751232191819,0.3618,107600.0,107590.0,0.1486771]
[1751232192018,0.3618,107600.0,107590.0,0.90607964]
[1751232193019,0.3628,107600.0,107590.0,0.90607964]
[1751232193423,0.3638,107600.0,107590.0,0.90607964]
[1751232194223,0.3638,107600.0,107590.0,0.83186439]
[1751232194925,0.3638,107600.0,107590.0,0.30868117]
[1751232195125,0.3638,107600.0,107590.0,0.83186439]
[1751232195313,0.3638,107600.0,107590.0,0.88752992]
[1751232196023,0.3638,107600.0,107590.0,0.83186439]
[1751232197330,0.3638,107600.0,107590.0,0.90607964]
[1751232198529,0.003,107600.0,107590.0,0.90607964]
[1751232204737,0.003,107600.0,107590.0,0.92057896]
[1751232205540,0.003,107600.0,107590.0,0.93464317]
[1751232207540,0.003,107600.0,107590.0,0.86042792]
[1751232208737,0.003,107600.0,107590.0,1.56202792]
[1751232210244,0.003,107600.0,107590.0,1.63624317]
[1751232210939,0.003,107600.0,107590.0,1.56202792]
[1751232220550,0.002,107600.0,107590.0,1.56202792]
[1751232220851,0.001,107600.0,107590.0,1.56402792]
[1751232223351,0.001,107600.0,107590.0,1.65685451]
[1751232224044,0.001,107600.0,107590.0,2.01721451]
[1751232224246,0.001,107600.0,107590.0,2.0031503]
[1751232227763,0.001,107600.0,107590.0,2.0031103]
[1751232228260,0.001,107600.0,107590.0,1.3019903]
[1751232228565,0.001,107600.0,107590.0,2.0031103]
[1751232232463,0.001,107600.0,107590.0,1.98451862]
[1751232232668,0.001,107600.0,107590.0,1.99883212]
[1751232232867,0.001,107600.0,107590.0,2.18618882]
[1751232233067,0.001,107600.0,107590.0,2.27901541]
[1751232233268,0.001,107600.0,107590.0,2.0174238]
[1751232234769,0.001,107600.0,107590.0,2.0174098]
[1751232235673,0.001,107630.0,107620.0,0.1486356]
[1751232235971,0.4551,107630.0,107620.0,1.33980298]
[1751232236373,0.4551,107630.0,107620.0,1.39545546]
[1751232236565,0.4551,107630.0,107620.0,1.39155381]
[1751232236762,0.4591,107630.0,107620.0,1.37705449]
[1751232236961,0.4591,107630.0,107620.0,1.39132795]
[1751232237166,0.4591,107630.0,107620.0,1.3768048]
[1751232237765,0.4591,107630.0,107620.0,1.30710251]
[1751232238270,0.4591,107630.0,107620.0,1.36268184]
[1751232239270,0.397,107630.0,107620.0,1.36268184]
[1751232239571,0.397,107630.0,107620.0,1.39408184]
[1751232239871,0.397,107630.0,107620.0,1.47030191]
[1751232240269,0.3658,107630.0,107620.0,0.94711869]
[1751232240466,0.3658,107630.0,107620.0,1.50310191]
[1751232240872,0.3658,107630.0,107620.0,1.50365068]
[1751232241575,0.005,107630.0,107620.0,1.50365068]
[1751232241774,0.3658,107630.0,107620.0,1.50365068]
[1751232241974,0.3658,107630.0,107620.0,0.98046746]
[1751232242174,0.3658,107630.0,107620.0,1.44807135]
[1751232242774,0.3648,107630.0,107620.0,1.44807135]
[1751232243175,0.3648,107630.0,107620.0,1.50359566]
[1751232244474,0.3628,107630.0,107620.0,1.50359566]
[1751232245475,0.3628,107630.0,107620.0,1.5405998]
[1751232245974,0.3628,107630.0,107620.0,1.50359566]
[1751232247276,0.3628,107630.0,107620.0,1.54059181]
[1751232248175,0.002,107630.0,107620.0,1.54059181]
[1751232248473,0.3628,107630.0,107620.0,1.54059181]
[1751232255477,0.002,107630.0,107620.0,1.50359566]
[1751232259279,0.002,107630.0,107620.0,1.44807135]
[1751232259483,0.002,107630.0,107620.0,1.46258763]
[1751232260681,0.64947767,107640.0,107630.0,0.1486218]
[1751232260979,0.64947767,107640.0,107630.0,0.53122337]
[1751232262584,0.65247767,107640.0,107630.0,0.53122337]
[1751232263384,0.65247767,107640.0,107630.0,0.54574492]
[1751232265085,0.65247767,107640.0,107630.0,0.57714492]
[1751232266485,0.65247767,107640.0,107630.0,0.54012992]
[1751232266686,0.65247767,107640.0,107630.0,0.57252992]
[1751232273298,0.65247767,107640.0,107630.0,0.31093831]
[1751232273499,0.91406928,107640.0,107630.0,1.14632992]
[1751232274596,0.65247767,107640.0,107630.0,1.14632992]
[1751232275399,0.65247767,107640.0,107630.0,0.88473831]
[1751232275596,0.65247767,107640.0,107630.0,1.14632992]
[1751232281604,0.65247767,107640.0,107630.0,0.57252992]
[1751232281806,0.65247767,107640.0,107620.0,0.41201499]
[1751232281807,0.1486218,107630.0,107620.0,0.41201499]
[1751232282110,0.5094218,107630.0,107620.0,1.33608145]
[1751232282305,0.5094218,107630.0,107620.0,0.87689823]
[1751232282509,0.5094218,107630.0,107620.0,1.43298145]
[1751232282810,0.5094218,107630.0,107620.0,1.47008766]
[1751232283210,0.5094218,107630.0,107620.0,0.89656766]
[1751232283211,0.5104218,107630.0,107620.0,0.89656766]
[1751232283412,0.5104218,107630.0,107620.0,1.47004766]
[1751232283905,0.77201341,107630.0,107620.0,1.47004766]
[1751232284106,0.80521341,107630.0,107620.0,1.47000766]
[1751232284312,0.80521341,107630.0,107620.0,1.17539605]
[1751232284512,0.83721341,107630.0,107620.0,1.18941651]
[1751232284713,0.83721341,107630.0,107620.0,1.18941717]
[1751232285207,0.83721341,107630.0,107620.0,1.21722578]
[1751232289715,0.83721341,107630.0,107620.0,0.64390578]
[1751232289914,0.83721341,107630.0,107620.0,1.21670578]
[1751232290115,0.80521341,107630.0,107620.0,1.21670578]
[1751232290316,0.80521341,107630.0,107620.0,1.23438256]
[1751232291315,0.80521341,107630.0,107620.0,1.49597417]
[1751232293924,0.80521341,107630.0,107620.0,1.52427752]
[1751232295328,0.80521341,107630.0,107620.0,1.49646891]
[1751232295625,0.80521341,107630.0,107620.0,1.2348773]
[1751232295826,0.80521341,107630.0,107620.0,0.97328569]
[1751232296125,0.80521341,107630.0,107620.0,1.49646891]
[1751232296627,0.5436218,107630.0,107620.0,1.49646891]
[1751232296826,0.80521341,107630.0,107620.0,1.49646891]
[1751232298627,0.80521341,107630.0,107620.0,1.49554891]
[1751232299626,0.5436218,107630.0,107620.0,1.49554891]
[1751232299831,0.80521341,107630.0,107620.0,1.49554891]
[1751232300427,0.77201341,107630.0,107620.0,0.24744383]
[1751232300630,0.80441341,107630.0,107620.0,1.04975544]
[1751232300828,0.6043218,107630.0,107620.0,0.47803544]
[1751232301030,0.86591341,107630.0,107620.0,1.04975544]
[1751232301328,0.86591341,107630.0,107620.0,1.08235544]
[1751232302232,0.86591341,107630.0,107620.0,1.23099104]
[1751232302830,0.86591341,107630.0,107620.0,1.08235544]
[1751232303533,0.86591341,107630.0,107620.0,1.23099104]
[1751232305136,0.6043218,107630.0,107620.0,1.08235544]
[1751232305431,0.6043218,107630.0,107620.0,1.23099104]
[1751232305432,0.86591341,107630.0,107620.0,1.23099104]
[1751232306033,0.86591341,107630.0,107620.0,0.49661498]
[1751232306233,0.86591341,107630.0,107620.0,1.04038124]
[1751232310136,0.86591341,107630.0,107620.0,1.11001318]
[1751232310437,0.86591341,107630.0,107620.0,1.03379311]
[1751232316838,0.86591341,107630.0,107620.0,0.97820571]
[1751232318440,0.85591341,107630.0,107620.0,0.97820571]
[1751232318640,0.85591341,107630.0,107620.0,1.03379311]
[1751232319039,0.5943218,107630.0,107620.0,1.03379311]
[1751232319339,0.85591341,107630.0,107620.0,1.03379311]
[1751232321540,0.49511341,107630.0,107620.0,1.03379311]
[1751232321841,1.21671341,107630.0,107620.0,1.03379311]
[1751232322641,0.49511341,107630.0,107620.0,1.03379311]
[1751232322855,1.21671341,107630.0,107620.0,1.03379311]
[1751232326145,1.15521341,107630.0,107620.0,1.03379311]
[1751232328543,1.15521341,107630.0,107620.0,1.06429311]
[1751232333146,1.15521341,107630.0,107620.0,1.02322925]
[1751232335150,1.15521341,107630.0,107620.0,0.76163764]
[1751232335350,1.15521341,107630.0,107620.0,1.02322925]
[1751232338452,1.15521341,107630.0,107620.0,1.00870571]
[1751232340456,1.15521341,107630.0,107620.0,0.43714571]
[1751232340752,1.15521341,107630.0,107620.0,1.00678571]
[1751232342857,1.15521341,107630.0,107620.0,1.06237311]
[1751232344159,1.15521341,107630.0,107620.0,0.8007815]
[1751232344359,1.15521341,107630.0,107620.0,1.06237311]
[1751232345253,1.15521341,107630.0,107620.0,1.0252669]
[1751232348162,0.43361341,107630.0,107620.0,1.0252669]
[1751232348355,1.15521341,107630.0,107620.0,1.0252669]
[1751232349060,1.15521341,107630.0,107620.0,0.76367529]
[1751232349359,1.15521341,107630.0,107620.0,1.0252669]
[1751232353160,0.43361341,107630.0,107620.0,1.0252669]
[1751232353362,1.15521341,107630.0,107620.0,1.0252669]
[1751232354464,1.15521341,107630.0,107620.0,1.02531883]
[1751232354964,1.15521341,107630.0,107620.0,0.46229106]
[1751232355163,1.15521341,107630.0,107620.0,1.03185106]
[1751232356664,0.8936218,107630.0,107620.0,1.03185106]
[1751232356966,1.15521341,107630.0,107620.0,1.03185106]
[1751232357464,1.15521341,107630.0,107620.0,1.06275106]
[1751232357665,1.15521341,107630.0,107620.0,1.02563883]
[1751232358667,1.15521341,107630.0,107620.0,1.07727461]
[1751232359063,0.8936218,107630.0,107620.0,1.07727461]
[1751232359265,1.15521341,107630.0,107620.0,1.07727461]
[1751232360760,1.15521341,107630.0,107600.0,0.09282659]
[1751232360761,0.1486494,107610.0,107600.0,0.09282659]
[1751232360968,1.13184101,107610.0,107600.0,0.61434453]
[1751232361268,1.19614101,107610.0,107600.0,0.04482453]
[1751232361656,1.19614101,107610.0,107600.0,0.61430453]
[1751232361856,1.19614101,107610.0,107600.0,0.04682453]
[1751232362063,1.19614101,107610.0,107600.0,0.61634453]
[1751232362262,1.19614101,107610.0,107600.0,0.07842453]
[1751232362467,1.19614101,107610.0,107600.0,0.64794453]
[1751232362667,1.19614101,107610.0,107600.0,0.63342]
[1751232362868,1.19614101,107610.0,107600.0,0.63642]
[1751232368565,1.19614101,107610.0,107600.0,0.0669]
[1751232369271,1.19614101,107610.0,107600.0,0.12251683]
[1751232371275,1.19614101,107610.0,107600.0,0.0669]
[1751232372774,1.19614101,107610.0,107600.0,0.08094314]
[1751232373175,1.19614101,107610.0,107600.0,0.10873865]
[1751232374169,0.47454101,107610.0,107600.0,0.10873865]
[1751232374374,1.19614101,107610.0,107600.0,0.10873865]
[1751232378276,1.19614101,107610.0,107600.0,0.09469551]
[1751232383386,1.19614101,107610.0,107600.0,0.10875196]
[1751232383681,1.19614101,107610.0,107600.0,0.09469551]
[1751232384283,1.19614101,107610.0,107600.0,0.10875228]
[1751232390893,1.19614101,107610.0,107600.0,0.14583607]
[1751232391194,1.19614101,107610.0,107600.0,0.11804056]
[1751232392294,1.19614101,107610.0,107600.0,0.13256719]
[1751232395194,1.19614101,107610.0,107600.0,0.18818402]
[1751232395894,1.19614101,107610.0,107600.0,0.21600039]
[1751232396196,1.19614101,107610.0,107600.0,0.16038356]
[1751232397296,1.19614101,107610.0,107600.0,0.21600039]
[1751232399800,1.19614101,107610.0,107600.0,0.20147376]
[1751232404705,0.9345494,107610.0,107600.0,0.20147376]
[1751232404906,1.19614101,107610.0,107600.0,0.20147376]
[1751232409811,1.19614101,107610.0,107600.0,0.2160004]
[1751232411513,1.22884101,107610.0,107600.0,0.20147376]
[1751232420717,1.22884101,107610.0,107600.0,0.20154274]
[1751232426617,1.22884101,107610.0,107600.0,0.18741699]
[1751232426818,1.22884101,107610.0,107600.0,0.20154203]
[1751232427823,1.36168101,107610.0,107600.0,0.15121706]
[1751232432327,0.64008101,107610.0,107600.0,0.15121706]
[1751232432526,1.36168101,107610.0,107600.0,0.15121706]
[1751232435329,1.36168101,107610.0,107600.0,0.16045207]
[1751232440838,1.36168101,107610.0,107600.0,0.20154203]
[1751232441842,1.62327262,107610.0,107600.0,0.20154203]
[1751232442142,1.72036182,107610.0,107600.0,0.0840252]
[1751232442343,1.72036182,107610.0,107600.0,0.11187505]
[1751232443242,1.72036182,107610.0,107600.0,0.09775001]
[1751232446945,1.72036182,107610.0,107600.0,0.06066622]
[1751232450646,1.72036182,107610.0,107600.0,0.08948708]
[1751232450849,2.02717021,107610.0,107600.0,0.12403723]
[1751232451053,1.99497021,107610.0,107600.0,0.12403723]
[1751232451352,1.96227021,107610.0,107600.0,0.10950915]
[1751232451553,1.96227021,107610.0,107600.0,0.14140915]
[1751232452855,2.22386182,107610.0,107600.0,0.14140915]
[1751232459858,2.22386182,107610.0,107600.0,0.12711637]
[1751232460062,2.25386182,107610.0,107600.0,0.12711637]
[1751232460961,2.25386182,107610.0,107600.0,0.09521637]
[1751232464661,1.53226182,107610.0,107600.0,0.09521637]
[1751232464964,2.25386182,107610.0,107600.0,0.09521637]
[1751232470263,2.30953286,107610.0,107600.0,0.09521637]
[1751232472571,2.30953286,107610.0,107600.0,0.10953744]
[1751232477171,2.30953286,107610.0,107600.0,0.13738729]
[1751232478076,2.25386182,107610.0,107600.0,0.13738729]
[1751232478775,1.7306786,107610.0,107600.0,0.13738729]
[1751232478975,2.25386182,107610.0,107600.0,0.13738729]
[1751232483481,2.25386182,107610.0,107600.0,0.12306622]
[1751232487885,2.30953286,107610.0,107600.0,0.12306622]
[1751232489685,2.31853286,107610.0,107600.0,0.12306622]
[1751232497490,2.26286182,107610.0,107600.0,0.13739557]
[1751232501094,2.31853286,107610.0,107600.0,0.13739557]
[1751232507096,2.31853286,107610.0,107600.0,0.12306622]
[1751232508995,1.03200964,107610.0,107600.0,0.12306622]
[1751232509198,1.93757021,107610.0,107600.0,0.18679145]
[1751232510198,1.23793021,107610.0,107600.0,0.18679145]
[1751232510403,1.93753021,107610.0,107600.0,0.18679145]
[1751232510799,1.23793021,107610.0,107600.0,0.18679145]
[1751232511000,1.93753021,107610.0,107600.0,0.18679145]
[1751232514000,1.21593021,107610.0,107600.0,0.18679145]
[1751232514298,1.93753021,107610.0,107600.0,0.18679145]
[1751232518102,1.99320125,107610.0,107600.0,0.18679145]
[1751232520902,1.99320125,107610.0,107600.0,0.17255651]
[1751232524804,1.99320125,107610.0,107600.0,0.15890904]
[1751232525302,1.99320125,107610.0,107600.0,0.18675889]
[1751232527299,1.63240125,107610.0,107600.0,0.18675889]
[1751232527504,1.99320125,107610.0,107600.0,0.18675889]
[1751232528304,1.93753021,107610.0,107600.0,0.18675889]
[1751232547819,1.96933021,107610.0,107600.0,0.18675889]
[1751232554226,1.7077386,107610.0,107600.0,0.18675889]
[1751232554420,1.96933021,107610.0,107600.0,0.18675889]
[1751232554621,1.23793021,107610.0,107600.0,0.4483505]
[1751232554917,1.36973021,107610.0,107600.0,0.47123191]
[1751232555122,1.36973021,107610.0,107600.0,0.48538904]
[1751232555524,1.36973021,107610.0,107600.0,0.44830525]
[1751232557125,1.36973021,107610.0,107600.0,0.48538904]
[1751232558124,1.36973021,107610.0,107600.0,0.44830525]
[1751232558323,1.36973021,107610.0,107600.0,0.43181496]
[1751232558729,1.36973021,107610.0,107600.0,0.58047986]
[1751232559028,1.36973021,107610.0,107600.0,0.43181496]
[1751232564133,1.27264101,107610.0,107600.0,0.43181496]
[1751232567535,1.27264101,107610.0,107600.0,0.17022335]
[1751232570536,1.27264101,107610.0,107600.0,0.20730714]
[1751232571537,1.0110494,107610.0,107600.0,0.20730714]
[1751232571736,1.27264101,107610.0,107600.0,0.20730714]
[1751232572236,1.27264101,107610.0,107600.0,0.19315001]
[1751232573338,1.14084101,107610.0,107600.0,0.19315001]
[1751232577140,0.8792494,107610.0,107600.0,0.19315001]
[1751232577341,1.14084101,107610.0,107600.0,0.19315001]
[1751232580949,1.14084101,107610.0,107600.0,0.2072391]
[1751232589063,1.14084101,107610.0,107600.0,0.46883071]
[1751232591963,1.14084101,107610.0,107600.0,0.2072391]
[1751232597768,0.9114494,107610.0,107600.0,0.2072391]
[1751232597969,1.17304101,107610.0,107600.0,0.2072391]
[1751232599664,1.14084101,107610.0,107600.0,0.2072391]
[1751232600569,0.8792494,107610.0,107600.0,0.46883071]
[1751232600769,1.14084101,107610.0,107600.0,0.46883071]
[1751232600969,0.8792494,107610.0,107600.0,0.46883071]
[1751232601271,1.14084101,107610.0,107600.0,0.46883071]
[1751232602264,0.8792494,107610.0,107600.0,0.46883071]
[1751232602470,1.14084101,107610.0,107600.0,0.46883071]
[1751232603170,0.8792494,107610.0,107600.0,0.46883071]
[1751232603568,1.14084101,107610.0,107600.0,0.46883071]
[1751232603767,0.8792494,107610.0,107600.0,0.2072391]
[1751232603968,1.14084101,107610.0,107600.0,0.46883071]
[1751232604273,0.8792494,107610.0,107600.0,0.46883071]
[1751232604476,1.14084101,107610.0,107600.0,0.46883071]
[1751232605770,0.8792494,107610.0,107600.0,0.46883071]
[1751232605971,1.14084101,107610.0,107600.0,0.46883071]
[1751232609071,0.8792494,107610.0,107600.0,0.46883071]
[1751232609275,1.14084101,107610.0,107600.0,0.46883071]
[1751232611177,1.14084101,107610.0,107600.0,0.2072391]
[1751232611375,1.14084101,107610.0,107600.0,0.46883071]
[1751232614082,1.14084101,107610.0,107600.0,0.2072391]
[1751232614281,1.14084101,107610.0,107600.0,0.46883071]
[1751232614477,0.8792494,107610.0,107600.0,0.46883071]
[1751232614673,1.14084101,107610.0,107600.0,0.46883071]
[1751232614979,1.17204101,107610.0,107600.0,0.46883071]
[1751232618484,1.17204101,107610.0,107600.0,0.2072391]
[1751232618683,1.17204101,107610.0,107600.0,0.46883071]
[1751232619885,0.8792494,107610.0,107600.0,0.46883071]
[1751232620086,0.8792494,107610.0,107600.0,0.2072391]
[1751232620384,0.8792494,107610.0,107600.0,0.46883071]
[1751232621387,1.14084101,107610.0,107600.0,0.46883071]
[1751232622886,0.8792494,107610.0,107600.0,0.46883071]
[1751232623086,1.14084101,107610.0,107600.0,0.46883071]
[1751232623887,0.8792494,107610.0,107600.0,0.46883071]
[1751232624185,1.14084101,107610.0,107600.0,0.44098086]
[1751232625186,0.8792494,107610.0,107600.0,0.44098086]
[1751232625386,1.14084101,107610.0,107600.0,0.44098086]
[1751232625687,1.14084101,107610.0,107600.0,0.58964576]
[1751232626286,0.8792494,107610.0,107600.0,1.45832511]
[1751232626487,0.8792494,107610.0,107600.0,1.42124132]
[1751232631190,0.8792494,107610.0,107600.0,1.4357672]
[1751232633590,0.8792494,107610.0,107600.0,1.6216312]
[1751232635491,0.8792494,107610.0,107600.0,1.7525912]
[1751232640197,0.8792494,107610.0,107600.0,1.5667272]
[1751232640392,0.8792494,107610.0,107600.0,1.7525912]
[1751232640699,0.8792494,107610.0,107600.0,1.5667272]
[1751232642697,0.5184494,107610.0,107600.0,1.5667272]
[1751232653305,0.5184494,107610.0,107600.0,1.51111037]
[1751232653506,0.5184494,107610.0,107600.0,1.5852637]
[1751232656608,0.1576494,107610.0,107600.0,1.5852637]
[1751232656807,0.5184494,107610.0,107600.0,1.5852637]
[1751232658207,0.5184494,107610.0,107600.0,1.51111037]
[1751232660208,0.3698,107610.0,107600.0,1.5852637]
[1751232663915,0.009,107610.0,107600.0,1.5852637]
[1751232664112,0.3698,107610.0,107600.0,1.5852637]
[1751232667920,0.3698,107610.0,107600.0,1.6020661]
[1751232674517,0.3698,107610.0,107600.0,1.58754022]
[1751232676021,0.3698,107610.0,107600.0,1.60203805]
[1751232676421,0.3698,107610.0,107600.0,1.86362966]
[1751232680419,0.5094485,107620.0,107610.0,0.148651]
[1751232680619,0.5094485,107620.0,107610.0,0.8847235]
[1751232681625,0.5094485,107620.0,107610.0,0.82907754]
[1751232682120,0.5094485,107620.0,107610.0,0.90323087]
[1751232682619,0.5094485,107620.0,107610.0,0.90423087]
[1751232684621,0.3608,107620.0,107610.0,0.91350471]
[1751232685029,0.6437927,107630.0,107620.0,0.1486372]
[1751232685330,0.6437927,107630.0,107620.0,1.36957382]
[1751232685627,0.6437927,107630.0,107620.0,1.40107382]
[1751232686830,0.5779927,107630.0,107620.0,1.40107382]
[1751232688224,0.5789927,107630.0,107620.0,1.4683356]
[1751232689626,0.5789927,107630.0,107620.0,0.8418356]
[1751232689928,1.00233481,107630.0,107620.0,0.09266427]
[1751232690338,1.00233481,107630.0,107620.0,0.65738427]
[1751232690821,1.00233481,107630.0,107620.0,0.91897588]
[1751232692132,0.90548431,107630.0,107620.0,0.50289308]
[1751232692432,0.90548431,107630.0,107620.0,1.06757308]
[1751232695533,0.90548431,107630.0,107620.0,0.91893588]
[1751232698131,0.90548431,107630.0,107620.0,0.88188247]
[1751232699834,1.26628431,107630.0,107620.0,0.88188247]
[1751232704241,1.0046927,107630.0,107620.0,0.88188247]
[1751232704440,1.26628431,107630.0,107620.0,0.88188247]
[1751232707341,1.26628431,107630.0,107620.0,0.62029086]
[1751232707541,1.26628431,107630.0,107620.0,0.91198247]
[1751232708141,1.26628431,107630.0,107620.0,0.94903588]
[1751232710343,1.26628431,107630.0,107620.0,0.98163588]
[1751232713149,1.26628431,107630.0,107620.0,0.35425588]
[1751232713352,1.26628431,107630.0,107620.0,0.91873588]
[1751232715648,0.54468431,107630.0,107620.0,0.91873588]
[1751232715848,1.26628431,107630.0,107620.0,0.94913588]
[1751232716742,1.26628431,107630.0,107620.0,0.98073588]
[1751232719951,1.20138431,107630.0,107620.0,0.98073588]
[1751232720153,1.20138431,107630.0,107620.0,1.01083588]
[1751232723156,1.20138431,107630.0,107620.0,0.98304139]
[1751232726959,0.47978431,107630.0,107620.0,0.98304139]
[1751232727259,1.20138431,107630.0,107620.0,0.98304139]
[1751232731161,1.16998431,107630.0,107620.0,0.98304139]
[1751232731865,0.9083927,107630.0,107620.0,1.3932702]
[1751232732061,0.7226,107630.0,107620.0,1.46570571]
[1751232732360,0.8712234,107630.0,107620.0,1.4286523]
[1751232733059,0.8712234,107630.0,107620.0,0.8641723]
[1751232733256,0.8712234,107630.0,107620.0,1.4284123]
[1751232735259,0.8712234,107630.0,107620.0,1.46550063]
[1751232736065,0.8712234,107630.0,107620.0,1.4284123]
[1751232736264,0.8712234,107630.0,107620.0,1.46549736]
[1751232740065,0.5104234,107630.0,107620.0,1.46549736]
[1751232741160,0.5104234,107630.0,107620.0,1.4284123]
[1751232741364,0.5104234,107630.0,107620.0,1.46548567]
[1751232742661,0.5104234,107630.0,107620.0,0.94230245]
[1751232743063,0.5104234,107630.0,107620.0,1.46548567]
[1751232747462,0.5104234,107630.0,107620.0,0.94230245]
[1751232747669,0.5104234,107630.0,107620.0,1.46548567]
[1751232758388,0.5104234,107630.0,107620.0,1.4284123]
[1751232765893,0.1496234,107630.0,107620.0,1.4284123]
[1751232766091,0.5104234,107630.0,107620.0,1.4284123]
[1751232767898,0.3618,107630.0,107620.0,1.4284123]
[1751232768099,0.5104234,107630.0,107620.0,1.4284123]
[1751232769297,0.5104234,107630.0,107620.0,1.44694515]
[1751232769502,0.3618,107630.0,107620.0,1.44694515]
[1751232769697,0.5094116,107640.0,107630.0,0.1486234]
[1751232769896,0.567452,107650.0,107640.0,0.1486096]
[1751232769897,0.6417561,107650.0,107640.0,0.1486096]
[1751232770200,0.6417561,107650.0,107640.0,1.30057441]
[1751232770391,0.6417561,107650.0,107640.0,1.32837885]
[1751232771102,0.6457561,107650.0,107640.0,1.32837885]
[1751232772102,0.6549168,107650.0,107640.0,1.32837885]
[1751232777410,0.3739607,107650.0,107640.0,1.39077885]
[1751232778412,0.5225565,107650.0,107640.0,1.39077885]
[1751232780209,0.1617565,107650.0,107640.0,1.39077885]
[1751232780409,0.5225565,107650.0,107640.0,1.39077885]
[1751232780705,0.5205565,107650.0,107640.0,1.39077885]
[1751232780904,0.5507565,107650.0,107640.0,1.39077885]
[1751232784315,0.5507565,107650.0,107640.0,0.76449885]
[1751232784518,0.6136565,107650.0,107640.0,1.32825885]
[1751232784716,0.6136565,107650.0,107640.0,1.29117363]
[1751232785312,0.6136565,107650.0,107640.0,1.32437363]
[1751232786720,0.6136565,107650.0,107640.0,1.39195885]
[1751232788216,0.6136565,107650.0,107640.0,1.35487363]
[1751232788217,0.5507565,107650.0,107640.0,1.35487363]
[1751232788520,0.5507565,107650.0,107640.0,1.38667363]
[1751232789312,0.5507565,107650.0,107640.0,1.42375885]
[1751232790526,0.5205565,107650.0,107640.0,1.42375885]
[1751232793422,0.5205565,107650.0,107640.0,1.45159465]
[1751232793625,0.5205565,107650.0,107640.0,0.88783465]
[1751232793917,0.5205565,107650.0,107640.0,1.45151465]
[1751232798230,0.5205565,107650.0,107640.0,1.41442943]
[1751232799235,0.5205565,107650.0,107640.0,0.89124621]
[1751232799528,0.5205565,107650.0,107640.0,1.41442943]
[1751232802632,0.5113958,107650.0,107640.0,1.41442943]
[1751232803136,0.52065628,107650.0,107640.0,1.41442943]
[1751232803334,0.3628,107650.0,107640.0,1.41442943]
[1751232803534,0.01141969,107650.0,107640.0,1.41442943]
[1751232803928,0.002,107650.0,107640.0,1.41442943]
[1751232805333,0.1505958,107650.0,107640.0,1.41442943]
[1751232805534,0.1485958,107650.0,107640.0,1.41442943]
[1751232807236,0.1485958,107650.0,107640.0,1.43130393]
[1751232809939,0.1485958,107650.0,107640.0,1.37566369]
[1751232817348,0.1485958,107650.0,107640.0,1.44981702]
[1751232825555,0.1485958,107650.0,107640.0,1.57981702]
[1751232827557,0.1485958,107650.0,107640.0,1.59433621]
[1751232832955,0.63092387,107660.0,107650.0,0.1485958]
[1751232833160,0.63092387,107660.0,107650.0,0.64059785]
[1751232833161,0.15682164,107660.0,107650.0,0.64059785]
[1751232833360,0.15682164,107660.0,107650.0,0.86511668]
[1751232833559,0.15682164,107660.0,107650.0,0.60352507]
[1751232833560,0.1485953,107660.0,107650.0,0.60352507]
[1751232834656,0.1485953,107660.0,107650.0,0.86511668]
[1751232834861,0.1505953,107660.0,107650.0,0.60352507]
[1751232835957,0.1505953,107660.0,107650.0,0.86511668]
[1751232839960,0.150582,107660.0,107650.0,0.86511668]
[1751232841165,0.002,107660.0,107650.0,0.86511668]
[1751232843564,0.002,107660.0,107650.0,0.8095075]
[1751232843760,0.002,107660.0,107650.0,1.1703075]
[1751232844161,0.002,107660.0,107650.0,1.24446083]
[1751232846971,0.002,107660.0,107650.0,1.50605244]
[1751232847363,0.002,107660.0,107650.0,2.19913244]
[1751232848071,0.1485549,107680.0,107670.0,0.1485682]
[1751232848263,0.1485549,107680.0,107670.0,1.52138847]
[1751232848468,0.1485549,107680.0,107670.0,1.61568847]
[1751232848669,0.1485549,107680.0,107670.0,1.61618493]
[1751232850469,0.1485549,107680.0,107670.0,1.56070799]
[1751232851068,0.1485549,107680.0,107670.0,1.57522341]
[1751232851874,0.1525549,107680.0,107670.0,1.57522341]
[1751232852369,0.1485549,107680.0,107670.0,1.57522341]
[1751232852564,0.1505549,107680.0,107670.0,1.57522341]
[1751232854170,0.1505549,107680.0,107670.0,1.93602341]
[1751232854171,0.002,107680.0,107670.0,1.93602341]
[1751232854373,0.1505544,107680.0,107670.0,1.91642355]
[1751232854769,0.1485544,107680.0,107670.0,1.91642355]
[1751232856569,0.1485544,107680.0,107670.0,1.78654355]
[1751232856776,0.5093544,107680.0,107670.0,1.23191194]
[1751232857074,0.5727544,107680.0,107670.0,1.23191194]
[1751232857275,0.6029544,107680.0,107670.0,1.23191194]
[1751232857872,0.6029544,107680.0,107670.0,0.49213652]
[1751232858176,0.6029544,107680.0,107670.0,1.05517652]
[1751232858675,0.6029544,107680.0,107670.0,0.49213652]
[1751232858876,0.6029544,107680.0,107670.0,1.05517652]
[1751232859477,0.6029544,107680.0,107670.0,0.79358491]
[1751232859678,0.6029544,107680.0,107670.0,1.05517652]
[1751232860075,0.86454601,107680.0,107670.0,0.08197671]
[1751232860274,0.86454601,107680.0,107670.0,1.08288805]
[1751232862372,0.86454601,107680.0,107670.0,1.05517652]
[1751232865282,0.86454601,107680.0,107670.0,1.11065346]
[1751232865678,0.86454601,107680.0,107670.0,1.0939742]
[1751232866185,0.86454601,107680.0,107670.0,1.09447066]
[1751232872180,0.86454601,107680.0,107670.0,0.83287905]
[1751232872384,0.86454601,107680.0,107670.0,1.05748604]
[1751232873588,0.86454601,107680.0,107670.0,0.90891784]
[1751232874292,0.86454601,107680.0,107670.0,1.05748604]
[1751232874592,0.86454601,107680.0,107670.0,0.81017519]
[1751232874784,0.86454601,107680.0,107670.0,1.0717668]
[1751232874989,0.6029544,107680.0,107670.0,1.0717668]
[1751232875195,0.86454601,107680.0,107670.0,1.07176924]
[1751232877192,0.6029544,107680.0,107670.0,1.07176924]
[1751232877392,0.86454601,107680.0,107670.0,1.05736604]
[1751232878088,0.86454601,107680.0,107670.0,1.07177121]
[1751232878393,0.86454601,107680.0,107670.0,1.10878273]
[1751232879584,0.86454601,107680.0,107670.0,1.14008273]
[1751232880193,0.86454601,107680.0,107670.0,1.17288273]
[1751232881094,0.86454601,107680.0,107670.0,1.15847756]
[1751232882397,0.6029544,107680.0,107670.0,1.15847756]
[1751232882598,0.86454601,107680.0,107670.0,1.15847756]
[1751232885402,0.83434601,107680.0,107670.0,1.15847756]
[1751232886200,0.83434601,107680.0,107670.0,1.18917756]
[1751232886406,0.83434601,107680.0,107670.0,1.15216604]
[1751232886702,0.80204601,107680.0,107670.0,1.15216604]
[1751232890005,0.77094601,107680.0,107670.0,1.15216604]